lending/lending_fUSD_20250808
["ID","MTS","AMOUNT","RATE_DAILY","PERIOD"]
[377948880,1754625045321,-608.45,0.00018889,2]
[377948881,1754625045331,-2085.4,0.00018889,2]
[377948882,1754625045339,-1584.14,0.00018889,2]
[377948883,1754625045349,-400.0,0.00018889,2]
[377948884,1754625045359,-1374.44,0.00018889,2]
[377948885,1754625045370,-1540.56,0.00018889,2]
[377948886,1754625045380,-754.55,0.00018889,2]
[377948887,1754625045389,-463.67,0.00018889,2]
[377948888,1754625045398,-1303.07,0.00018889,2]
[377948889,1754625045407,-1373.03,0.00018889,2]
[377948890,1754625045417,-1934.42,0.00018889,2]
[377948891,1754625045426,-13826.09,0.00018889,2]
[377948892,1754625045435,-1083.13,0.00018889,2]
[377948893,1754625045444,-7207.9,0.00018889,2]
[377948894,1754625045453,-956.96,0.00018889,2]
[377948895,1754625045462,-400.0,0.00018889,2]
[377948896,1754625045471,-1510.38,0.00018889,2]
[377948897,1754625045480,-870.88,0.00018889,2]
[377948898,1754625045490,-635.85,0.00018889,2]
[377948899,1754625045499,-1336.12,0.00018889,2]
[377948900,1754625045508,-1857.46,0.00018889,2]
[377948901,1754625045517,-400.0,0.00018889,2]
[377948902,1754625045527,-956.97,0.00018889,2]
[377948903,1754625045537,-673.43,0.00018889,2]
[377948904,1754625045547,-1171.75,0.00018889,2]
[377948905,1754625045556,-1420.59,0.00018889,2]
[377948906,1754625045565,-1155.99,0.00018889,2]
[377948908,1754625045574,-1386.07,0.00018889,2]
[377948909,1754625045584,-1688.47,0.00018889,2]
[377948911,1754625045595,-1166.94,0.00018889,2]
[377948913,1754625045608,-1318.3,0.00018889,2]
[377948915,1754625045618,-2523.45,0.0001889,2]
[377948917,1754625045627,-1124.43,0.0001889,2]
[377948919,1754625045637,-470.87,0.0001889,2]
[377948921,1754625045646,-2006.3,0.0001889,2]
[377948922,1754625045655,-1257.59,0.0001889,2]
[377948924,1754625045664,-1399.73,0.0001889,2]
[377948926,1754625045674,-500.0,0.00018891,2]
[377948928,1754625045684,-150.0,0.00018891,2]
[377948930,1754625045694,-1794.1651,0.000189,2]
[377948932,1754625045703,-415.19977896,0.000189,2]
[377948934,1754625045714,-162.83631064,0.000189,2]
[377948936,1754625045723,-275.77017064,0.000189,2]
[377948938,1754625045732,-397.74145028,0.000189,2]
[377948940,1754625045742,-941.75679122,0.000189,2]
[377948942,1754625045752,-3462.41198756,0.000189,2]
[377948944,1754625045761,-512.99514098,0.000189,3]
[377948946,1754625045770,-646.85579858,0.000189,2]
[377948948,1754625045780,-1022.12103621,0.000189,2]
[377948950,1754625045789,-163.91636,0.0001892,2]
[377948952,1754625045799,-500.0,0.00018932,2]
[377948954,1754625045810,-500.0,0.00018973,2]
[377948957,1754625045821,-500.0,0.00018973,2]
[377948959,1754625045831,-164.61390416,0.00018973,2]
[377948961,1754625045840,-500.0,0.00018973,2]
[377948963,1754625045851,-500.0,0.00018973,2]
[377948965,1754625045860,-519.87176113,0.00018973,2]
[377948967,1754625045869,-500.0,0.00018973,2]
[377948968,1754625045879,-272.96062426,0.00018986,2]
[377948970,1754625045888,-500.0,0.00018987,2]
[377948972,1754625045898,-1771.1330685,0.00018992,2]
[377948974,1754625045907,-546.4172087,0.00018992,2]
[377948977,1754625045917,-1000.0,0.00018999,2]
[377948979,1754625045929,-1000.0,0.00018999,2]
[377948980,1754625045939,-239.4566,0.00018999,2]
[377948981,1754625045948,-1000.0,0.00018999,2]
[377948982,1754625045957,-400.0,0.00018999,2]
[377948983,1754625045967,-1284.62,0.00018999,2]
[377948985,1754625045976,-1318.9,0.00018999,2]
[377948987,1754625045986,-1063.23,0.00018999,2]
[377948989,1754625045996,-1733.94187368,0.00019,2]
[377948990,1754625046006,-3404521.6827783,0.00019,2]
[377948993,1754625046016,-3114678.57280907,0.00019,2]
[377949007,1754625046958,-510.7,0.00018887,2]
[377949008,1754625046968,-400.0,0.00018888,2]
[377949009,1754625046980,-400.0,0.00018888,2]
[377949010,1754625046990,-13487.51572542,0.00019,2]
[377949011,1754625047002,-125601.67112896,0.00019,2]
[377949012,1754625047017,-836.96844604,0.00019,2]
[377949013,1754625047028,-2840.43,0.00019,2]
[377949014,1754625047050,-4466.5724993,0.00019,2]
[377949016,1754625072732,400.0,0.00027397,120]
[377949017,1754625072809,252.0,0.00027397,120]
[377949018,1754625087643,-300.0,0.00018886,2]
[377949019,1754625087673,-97.44557927,0.00018886,2]
[377949020,1754625087722,-165.55442073,0.00018886,2]
[377949021,1754625095850,156.24,0.00018184,2]
[377949022,1754625095870,209.26,0.00018184,2]
[377949023,1754625096929,-10.54,0.00018184,2]
[377949024,1754625115695,-499.31,0.00018886,2]
[377949025,1754625115725,-615.71331191,0.00018886,2]
[377949026,1754625115795,-218.78668809,0.00018886,2]
[377949027,1754625137410,-161.63295825,0.00018182,2]
[377949028,1754625141348,-196.56067485,0.00018182,2]
[377949029,1754625147199,-300.0,0.00018182,2]
[377949030,1754625150653,-252.3962309,0.00018182,2]
[377949031,1754625154290,-193.38070165,0.00018182,2]
[377949032,1754625157522,-158.20919811,0.00018182,2]
[377949033,1754625159535,-374.35769687,0.00018182,2]
[377949034,1754625161868,-266.21204023,0.00018182,2]
[377949035,1754625166043,-347.82690478,0.00018182,2]
[377949036,1754625168434,-307.39,0.00018182,2]
[377949037,1754625171985,-193.03359436,0.00018182,2]
[377949038,1754625215270,-209.26,0.00018787,2]
[377949039,1754625243797,-157.26495252,0.00018787,2]
[377949040,1754625282663,224.58196193,0.00015,2]
[377949041,1754625282688,25.41803807,0.00015,2]
[377949042,1754625283970,300.0,0.00017,2]
[377949043,1754625287562,74.58196193,0.00017883,7]
[377949044,1754625287583,100.41803807,0.00017883,7]
[377949048,1754625423865,-170.08147885,0.00018042,2]
[377949049,1754625425419,-158.20919811,0.00018042,2]
[377949050,1754625429002,-270.92322313,0.00018042,2]
[377949052,1754625436768,-30.54609991,0.00018042,2]
[377949053,1754625454751,460.29,0.00015068,2]
[377949054,1754625454804,460.29,0.00016659,2]
[377949056,1754625499852,172.3,0.00017883,2]
[377949060,1754625596759,160.79,0.00018,2]
[377949061,1754625611192,-287.14226575,0.00018316,4]
[377949063,1754625616167,-197.0136737,0.00018249,2]
[377949064,1754625620347,-228.78863574,0.00018249,2]
[377949065,1754625623325,-34.48769056,0.00018249,2]
[377949066,1754625668386,250.0,0.00017883,2]
[377949068,1754625688502,200.0,0.00017912,2]
[377949069,1754625693890,-166.7547058,0.00018316,4]
[377949070,1754625720969,-166.7547058,0.00018316,4]
[377949071,1754625724074,-379.34832265,0.00018316,4]
[377949072,1754625724113,-74.5486489,0.00018322,2]
[377949073,1754625726495,-156.24,0.00018322,2]
[377949074,1754625727991,-19.2113511,0.00018322,2]
[377949075,1754625728038,-170.8372978,0.00018328,2]
[377949076,1754625731222,-634.5,0.00018325,4]
[377949077,1754625733749,-150.0,0.00018325,4]
[377949078,1754625736033,-150.0,0.00018325,4]
[377949080,1754625741608,-65.5,0.00018325,4]
[377949081,1754625741724,-57.91004283,0.00018328,2]
[377949082,1754625742564,-150.0,0.00018328,2]
[377949083,1754625742661,192.59,0.00013699,2]
[377949084,1754625742995,-17.74734063,0.00018328,2]
[377949085,1754625743020,-114.50531874,0.00018328,2]
[377949086,1754625743939,-150.0,0.00018383,2]
[377949088,1754625774565,511.30151876,0.00017,5]
[377949090,1754625819844,298.0,0.00017919,2]
[377949091,1754625819870,184.62031104,0.00017919,2]
[377949092,1754625819893,209.26,0.00017919,2]
[377949093,1754625819916,150.0,0.00017919,2]
[377949094,1754625819941,158.11968896,0.00017919,2]
[377949095,1754625859365,559.35,0.00017883,2]
[377949096,1754625907108,150.0,0.00017088,2]
[377949097,1754625907200,150.0,0.00017721,2]
[377949098,1754625907392,150.0,0.00017088,2]
[377949099,1754625907455,150.0,0.00017088,2]
[377949100,1754625907559,150.0,0.00017359,2]
[377949101,1754625907617,150.0,0.0001763,2]
[377949102,1754625907657,150.0,0.00017901,2]
[377949103,1754625913035,150.0,0.00017088,2]
[377949104,1754625914478,150.0,0.00017088,2]
[377949105,1754625914999,150.0,0.00017088,2]
[377949106,1754625916888,150.0,0.00017088,2]
[377949107,1754625922438,152.7372895,0.00017088,2]
[377949109,1754625927805,150.0,0.00017088,2]
[377949110,1754625928164,151.67847476,0.00017088,2]
[377949111,1754625928248,150.0,0.00017088,2]
[377949112,1754625956986,666.0,0.00017841,3]
[377949113,1754625982804,549.94,0.00027397,120]
[377949114,1754625991564,263.54,0.00017844,2]
[377949115,1754626037642,14970.17,0.00017883,2]
[377949117,1754626050553,23900.0,0.00017836,2]
[377949118,1754626082481,-150.0,0.00018173,2]
[377949121,1754626136446,-150.0,0.00018353,2]
[377949122,1754626136575,-100.0,0.00018396,4]
[377949124,1754626178300,100.0,0.00017883,2]
[377949125,1754626178325,13067.99,0.00017883,2]
[377949126,1754626198046,-193.11610755,0.00018339,2]
[377949127,1754626198765,-13.7677849,0.00018339,2]
[377949128,1754626198794,-600.3544302,0.00018396,4]
[377949129,1754626199606,-213.4133547,0.00018396,4]
[377949130,1754626199847,-86.2322151,0.00018396,4]
[377949131,1754626199876,-138.62552697,0.00018439,2]
[377949132,1754626199945,-50.28451586,0.00018439,2]
[377949133,1754626202884,-150.0,0.00018439,2]
[377949134,1754626202919,-200.0,0.00018439,4]
[377949135,1754626204553,-604.26,0.00018439,4]
[377949136,1754626204580,-195.74,0.00018439,4]
[377949137,1754626205322,-34.18647618,0.00018439,2]
[377949138,1754626205453,-115.81352382,0.00018439,2]
[377949139,1754626206475,-258.94175869,0.00018439,4]
[377949140,1754626207116,-580.02,0.00018439,4]
[377949141,1754626208208,-161.03824131,0.00018439,4]
[377949142,1754626208243,-250.0,0.00018439,2]
[377949143,1754626208272,-150.0,0.00018444,2]
[377949144,1754626208304,-124.77351738,0.00018454,2]
[377949145,1754626208383,-25.22648262,0.00018454,2]
[377949146,1754626208991,-12.71,0.00018454,4]
[377949147,1754626209014,-987.29,0.00018454,4]
[377949148,1754626210284,-250.0,0.00018468,2]
[377949149,1754626211426,-206.88389245,0.00018563,2]
[377949150,1754626215895,-722.02,0.000187,2]
[377949151,1754626216520,-443.44,0.000187,2]
[377949152,1754626216549,-51.17,0.00018715,2]
[377949153,1754626216582,-98.83,0.00018715,2]
[377949154,1754626217114,-263.54,0.00018736,2]
[377949155,1754626217144,-22.21,0.00018754,2]
[377949156,1754626217179,-127.79,0.00018754,2]
[377949157,1754626218350,-172.3,0.00018777,2]
[377949158,1754626218403,-725.32,0.00018785,2]
[377949159,1754626218967,-312.17,0.00018785,2]
[377949160,1754626219009,-162.51,0.00018785,2]
[377949161,1754626221206,-58.63,0.00018786,2]
[377949162,1754626221492,-306.37,0.00018786,2]
[377949163,1754626221550,-300.0,0.00018786,2]
[377949164,1754626221608,-114.53,0.00018786,2]
[377949165,1754626221928,-92.35389245,0.00018786,2]
[377949166,1754626221981,-215.2922151,0.00018786,2]
[377949167,1754626222877,-84.7077849,0.00018786,2]
[377949168,1754626222908,-254.7944302,0.00018786,2]
[377949169,1754626223003,-45.2055698,0.00018786,2]
[377949170,1754626223306,-400.0,0.00018787,2]
[377949171,1754626223933,-118.50798948,0.00018787,2]
[377949172,1754626223975,-440.21402104,0.00018787,2]
[377949173,1754626224711,-130.65262521,0.00018787,2]
[377949174,1754626224734,-900.53474958,0.00018787,2]
[377949175,1754626225415,-162.38734137,0.00018787,2]
[377949176,1754626225501,-554.02531726,0.00018787,2]
[377949177,1754626226039,-400.0,0.00018787,2]
[377949178,1754626226914,-750.05,0.00018787,2]
[377949179,1754626228771,-413.97,0.00018787,2]
[377949180,1754626229405,-400.0,0.00018787,2]
[377949181,1754626230667,-1434.81,0.00018787,2]
[377949182,1754626232059,-1047.14468274,0.00018787,2]
[377949183,1754626232071,-180.7826325,0.00018799,2]
[377949184,1754626232084,-86.67811053,0.00018799,2]
[377949185,1754626232094,-313.32188947,0.0001881,2]
[377949186,1754626232147,-155.76188947,0.0001881,2]
[377949187,1754626232165,-130.91622106,0.0001881,2]
[377949188,1754626232174,-1462.00907571,0.0001881,2]
[377949189,1754626232200,-48.27309429,0.0001881,2]
[377949190,1754626232210,-82.64312677,0.00018848,2]
[377949191,1754626232221,-435.86486263,0.00018848,2]
[377949192,1754626232231,-1471.40139579,0.00018848,2]
[377949193,1754626232240,-231.49024026,0.00018872,2]
[377949194,1754626232250,-500.0,0.00018873,2]
[377949195,1754626232260,-157.89690375,0.00018873,2]
[377949206,1754626232778,-342.10309625,0.00018873,2]
[377949207,1754626232825,-78.4838075,0.00018873,2]
[377949208,1754626234198,-421.5161925,0.00018873,2]
[377949209,1754626234381,-260.417615,0.00018873,2]
[377949210,1754626235200,-239.582385,0.00018873,2]
[377949211,1754626235247,-108.63523,0.00018873,2]
[377949212,1754626235301,-391.36477,0.00018873,2]
[377949213,1754626236884,-500.0,0.00018873,2]
[377949214,1754626237399,-460.44557927,0.00018873,2]
[377949215,1754626237427,-39.55442073,0.00018873,2]
[377949226,1754626238059,-500.0,0.00018873,2]
[377949227,1754626238068,-388.0,0.00018873,2]
[377949228,1754626238126,-112.0,0.00018873,2]
[377949229,1754626238154,-568.50646104,0.00018873,2]
[377949230,1754626238183,-500.0,0.00018873,2]
[377949231,1754626238259,-453.32038983,0.00018873,2]
[377949232,1754626238271,-46.67961017,0.00018873,2]
[377949233,1754626238280,-450.68216855,0.00018873,2]
[377949234,1754626238328,-49.31783145,0.00018873,2]
[377949235,1754626238338,-500.0,0.00018873,2]
[377949236,1754626238347,-500.0,0.00018873,2]
[377949237,1754626238357,-500.0,0.00018873,2]
[377949238,1754626238367,-151.0,0.00018876,2]
[377949239,1754626238376,-160.0,0.00018876,2]
[377949240,1754626238385,-500.0,0.00018876,2]
[377949241,1754626238394,-600.0,0.00018876,2]
[377949242,1754626238404,-600.0,0.00018876,2]
[377949243,1754626238413,-600.0,0.00018876,2]
[377949244,1754626238423,-151.0,0.00018876,2]
[377949245,1754626238432,-151.0,0.00018876,2]
[377949247,1754626238441,-151.0,0.00018876,2]
[377949248,1754626238451,-151.0,0.00018876,2]
[377949249,1754626238460,-151.0,0.00018876,2]
[377949250,1754626238469,-151.0,0.00018876,2]
[377949251,1754626238479,-151.0,0.00018876,2]
[377949252,1754626238487,-151.0,0.00018876,2]
[377949253,1754626238497,-151.0,0.00018876,2]
[377949254,1754626238506,-151.0,0.00018876,2]
[377949255,1754626238515,-151.0,0.00018876,2]
[377949256,1754626238524,-230.75558899,0.00018876,2]
[377949257,1754626238534,-500.0,0.00018876,2]
[377949259,1754626238543,-500.0,0.00018876,2]
[377949261,1754626238552,-500.0,0.00018876,2]
[377949263,1754626238561,-500.0,0.00018876,2]
[377949265,1754626238571,-500.0,0.00018876,2]
[377949267,1754626238580,-500.0,0.00018876,2]
[377949269,1754626238589,-500.0,0.00018876,2]
[377949271,1754626238599,-500.0,0.00018876,2]
[377949273,1754626238608,-500.0,0.00018876,2]
[377949275,1754626238617,-500.0,0.00018876,2]
[377949277,1754626238626,-500.0,0.00018876,2]
[377949279,1754626238635,-877.96342722,0.0001888,2]
[377949281,1754626238644,-247.21553638,0.00018885,2]
[377949314,1754626238982,-38.47553638,0.00018885,2]
[377949318,1754626239007,-214.30892724,0.00018885,2]
[377949378,1754626239591,-500.0,0.00018885,2]
[377949383,1754626239624,-500.0,0.00018885,2]
[377949387,1754626239658,-351.77464497,0.00018885,2]
[377949395,1754626239727,-110.78402197,0.00018886,2]
[377949423,1754626240000,-289.21597803,0.00018886,2]
[377949425,1754626240011,-400.0,0.00018886,2]
[377949427,1754626240022,-400.0,0.00018886,2]
[377949429,1754626240032,-78.28402197,0.00018886,2]
[377949431,1754626240045,-321.71597803,0.00018886,2]
[377949433,1754626240054,-618.32,0.00018886,2]
[377949435,1754626240064,-400.0,0.00018886,2]
[377949437,1754626240074,-400.0,0.00018886,2]
[377949439,1754626240083,-400.0,0.00018886,2]
[377949441,1754626240093,-400.0,0.00018886,2]
[377949443,1754626240103,-400.0,0.00018886,2]
[377949445,1754626240113,-400.0,0.00018886,2]
[377949447,1754626240122,-399.448,0.00018886,2]
[377949449,1754626240132,-588.0,0.00018886,2]
[377949451,1754626240142,-624.86,0.00018886,2]
[377949453,1754626240152,-427.23,0.00018886,2]
[377949455,1754626240161,-400.0,0.00018886,2]
[377949457,1754626240171,-884.77,0.00018886,2]
[377949459,1754626240181,-595.03,0.00018886,2]
[377949461,1754626240192,-400.0,0.00018886,2]
[377949463,1754626240202,-426.17,0.00018886,2]
[377949465,1754626240211,-379.74446553,0.00018886,2]
[377949467,1754626240221,-440.95,0.00018886,2]
[377949469,1754626240231,-400.0,0.00018886,2]
[377949471,1754626240240,-329.85597488,0.00018886,2]
[377949473,1754626240250,-400.0,0.00018886,2]
[377949475,1754626240259,-400.0,0.00018886,2]
[377949477,1754626240270,-400.0,0.00018886,2]
[377949479,1754626240279,-520.94,0.00018886,2]
[377949481,1754626240289,-391.5191198,0.00018886,2]
[377949483,1754626240299,-877.46,0.00018886,2]
[377949485,1754626240308,-723.85,0.00018886,2]
[377949487,1754626240318,-644.54,0.00018886,2]
[377949489,1754626240328,-400.0,0.00018886,2]
[377949491,1754626240337,-400.0,0.00018886,2]
[377949493,1754626240349,-632.95,0.00018886,2]
[377949495,1754626240359,-400.0,0.00018886,2]
[377949497,1754626240369,-489.45676074,0.00018886,2]
[377949499,1754626240379,-400.0,0.00018886,2]
[377949501,1754626240388,-833.93,0.00018886,2]
[377949504,1754626240401,-767.52,0.00018886,2]
[377949506,1754626240411,-400.0,0.00018886,2]
[377949508,1754626240421,-400.0,0.00018886,2]
[377949510,1754626240431,-400.0,0.00018886,2]
[377949512,1754626240441,-400.0,0.00018886,2]
[377949514,1754626240451,-771.81,0.00018886,2]
[377949516,1754626240460,-400.0,0.00018886,2]
[377949518,1754626240470,-400.0,0.00018886,2]
[377949520,1754626240480,-686.78,0.00018886,2]
[377949522,1754626240490,-400.0,0.00018886,2]
[377949524,1754626240499,-655.46,0.00018886,2]
[377949526,1754626240509,-400.0,0.00018886,2]
[377949528,1754626240519,-400.0,0.00018886,2]
[377949530,1754626240529,-400.0,0.00018886,2]
[377949532,1754626240539,-924.55,0.00018886,2]
[377949534,1754626240548,-400.0,0.00018886,2]
[377949536,1754626240558,-400.0,0.00018886,2]
[377949539,1754626240568,-400.0,0.00018886,2]
[377949541,1754626240578,-460.64,0.00018886,2]
[377949543,1754626240588,-400.0,0.00018886,2]
[377949545,1754626240598,-701.53,0.00018886,2]
[377949546,1754626240608,-400.0,0.00018886,2]
[377949547,1754626240618,-400.0,0.00018886,2]
[377949548,1754626240627,-400.0,0.00018886,2]
[377949549,1754626240637,-400.0,0.00018886,2]
[377949550,1754626240646,-1157.87,0.00018886,2]
[377949551,1754626240655,-400.0,0.00018886,2]
[377949552,1754626240665,-400.0,0.00018886,2]
[377949553,1754626240679,-688.94,0.00018886,2]
[377949554,1754626240689,-443.7,0.00018886,2]
[377949555,1754626240699,-400.0,0.00018886,2]
[377949556,1754626240708,-400.0,0.00018886,2]
[377949557,1754626240718,-400.0,0.00018886,2]
[377949558,1754626240728,-400.0,0.00018886,2]
[377949560,1754626240738,-400.0,0.00018886,2]
[377949562,1754626240748,-650.63,0.00018886,2]
[377949564,1754626240758,-400.0,0.00018886,2]
[377949566,1754626240768,-190.0,0.00018886,2]
[377949568,1754626240778,-400.0,0.00018886,2]
[377949570,1754626240790,-400.0,0.00018886,2]
[377949572,1754626240800,-577.57,0.00018886,2]
[377949574,1754626240810,-775.03,0.00018886,2]
[377949576,1754626240820,-1098.43,0.00018886,2]
[377949578,1754626240830,-400.0,0.00018886,2]
[377949580,1754626240840,-618.38,0.00018886,2]
[377949582,1754626240850,-400.0,0.00018886,2]
[377949584,1754626240860,-841.9,0.00018886,2]
[377949586,1754626240870,-400.0,0.00018886,2]
[377949588,1754626240881,-434.74,0.00018886,2]
[377949590,1754626240893,-400.0,0.00018886,2]
[377949592,1754626240905,-400.0,0.00018886,2]
[377949594,1754626240915,-400.0,0.00018886,2]
[377949596,1754626240924,-1340.04,0.00018886,2]
[377949598,1754626240935,-400.0,0.00018886,2]
[377949600,1754626240945,-636.11,0.00018886,2]
[377949602,1754626240958,-400.0,0.00018886,2]
[377949604,1754626240969,-493.23,0.00018886,2]
[377949606,1754626240980,-400.0,0.00018886,2]
[377949608,1754626240990,-1568.15,0.00018886,2]
[377949610,1754626241000,-400.0,0.00018886,2]
[377949612,1754626241009,-400.0,0.00018886,2]
[377949614,1754626241019,-400.0,0.00018886,2]
[377949616,1754626241029,-1823.15,0.00018886,2]
[377949618,1754626241038,-460.80663557,0.00018886,2]
[377949620,1754626241048,-2170.08,0.00018886,2]
[377949622,1754626241058,-400.0,0.00018886,2]
[377949624,1754626241068,-400.0,0.00018886,2]
[377949626,1754626241078,-701.28,0.00018886,2]
[377949628,1754626241088,-400.0,0.00018886,2]
[377949630,1754626241098,-606.4,0.00018886,2]
[377949632,1754626241107,-737.08,0.00018886,2]
[377949634,1754626241117,-584.73,0.00018886,2]
[377949636,1754626241127,-481.92,0.00018886,2]
[377949638,1754626241137,-400.0,0.00018886,2]
[377949640,1754626241147,-419.61,0.00018886,2]
[377949642,1754626241157,-400.0,0.00018886,2]
[377949645,1754626241168,-400.0,0.00018886,2]
[377949647,1754626241178,-400.0,0.00018886,2]
[377949649,1754626241190,-400.0,0.00018886,2]
[377949651,1754626241200,-1041.24,0.00018886,2]
[377949653,1754626241210,-895.39,0.00018886,2]
[377949655,1754626241220,-450.17,0.00018886,2]
[377949657,1754626241234,-400.0,0.00018886,2]
[377949659,1754626241244,-736.83,0.00018886,2]
[377949661,1754626241254,-400.0,0.00018886,2]
[377949663,1754626241264,-400.0,0.00018886,2]
[377949665,1754626241274,-1388.68,0.00018886,2]
[377949668,1754626241284,-404.77,0.00018886,2]
[377949670,1754626241294,-726.4,0.00018886,2]
[377949672,1754626241303,-1109.46,0.00018886,2]
[377949674,1754626241313,-434.65,0.00018886,2]
[377949676,1754626241323,-1391.01,0.00018886,2]
[377949678,1754626241332,-962.32,0.00018886,2]
[377949680,1754626241342,-400.0,0.00018886,2]
[377949682,1754626241351,-866.44,0.00018886,2]
[377949684,1754626241361,-714.0,0.00018886,2]
[377949686,1754626241371,-400.0,0.00018886,2]
[377949688,1754626241380,-715.91,0.00018886,2]
[377949690,1754626241390,-400.0,0.00018886,2]
[377949692,1754626241399,-1033.08,0.00018886,2]
[377949694,1754626241408,-812.69,0.00018886,2]
[377949696,1754626241418,-1441.14,0.00018886,2]
[377949725,1754626241670,-654.63,0.00018886,2]
[377949727,1754626241680,-400.0,0.00018886,2]
[377949729,1754626241697,-705.25,0.00018886,2]
[377949732,1754626241709,-852.53,0.00018886,2]
[377949734,1754626241719,-797.14,0.00018886,2]
[377949736,1754626241728,-400.0,0.00018886,2]
[377949738,1754626241738,-400.0,0.00018886,2]
[377949740,1754626241747,-1115.11,0.00018886,2]
[377949742,1754626241757,-400.0,0.00018886,2]
[377949744,1754626241767,-400.0,0.00018886,2]
[377949746,1754626241776,-401.75,0.00018886,2]
[377949748,1754626241786,-796.7,0.00018886,2]
[377949750,1754626241796,-1347.39,0.00018886,2]
[377949752,1754626241805,-457.46,0.00018886,2]
[377949754,1754626241815,-407.39,0.00018886,2]
[377949756,1754626241824,-673.14,0.00018886,2]
[377949758,1754626241834,-1822.34,0.00018886,2]
[377949760,1754626241844,-1270.48,0.00018886,2]
[377949762,1754626241854,-400.0,0.00018886,2]
[377949764,1754626241864,-1002.76,0.00018886,2]
[377949766,1754626241874,-400.0,0.00018886,2]
[377949768,1754626241884,-400.0,0.00018886,2]
[377949771,1754626241894,-890.13,0.00018886,2]
[377949773,1754626241908,-644.35,0.00018886,2]
[377949775,1754626241918,-409.25,0.00018886,2]
[377949777,1754626241928,-1245.67,0.00018886,2]
[377949779,1754626241938,-2043.21,0.00018886,2]
[377949781,1754626241948,-400.0,0.00018886,2]
[377949783,1754626241958,-2233.71,0.00018886,2]
[377949785,1754626241969,-741.24,0.00018886,2]
[377949787,1754626241980,-1155.63,0.00018886,2]
[377949789,1754626241990,-400.0,0.00018886,2]
[377949791,1754626242000,-514.46,0.00018886,2]
[377949793,1754626242010,-1047.2,0.00018886,2]
[377949795,1754626242021,-489.77,0.00018886,2]
[377949797,1754626242031,-400.0,0.00018886,2]
[377949799,1754626242040,-400.0,0.00018886,2]
[377949801,1754626242049,-695.7,0.00018886,2]
[377949803,1754626242059,-426.22,0.00018886,2]
[377949805,1754626242069,-400.0,0.00018886,2]
[377949807,1754626242078,-400.0,0.00018886,2]
[377949809,1754626242088,-637.06,0.00018886,2]
[377949811,1754626242099,-555.42,0.00018886,2]
[377949813,1754626242109,-400.0,0.00018886,2]
[377949815,1754626242119,-469.28,0.00018886,2]
[377949817,1754626242128,-423.0,0.00018886,2]
[377949819,1754626242137,-1209.56,0.00018886,2]
[377949820,1754626242146,-400.0,0.00018886,2]
[377949822,1754626242155,-896.1,0.00018886,2]
[377949824,1754626242165,-400.0,0.00018886,2]
[377949825,1754626242174,-400.0,0.00018886,2]
[377949827,1754626242183,-440.54417885,0.00018886,2]
[377949829,1754626242194,-400.0,0.00018886,2]
[377949831,1754626242206,-400.56175262,0.00018886,2]
[377949833,1754626242216,-400.0,0.00018887,2]
[377949835,1754626242225,-400.0,0.00018887,2]